bitfinex-derivatives/quotes_SOLF0:USTF0_20240925
["timestamp","ask_amount","ask_price","bid_price","bid_amount"]
[1727283532691,9.13,151.53,151.47,9.13]
[1727283533087,3.2997,151.54,151.5,3.3004]
[1727283533393,9.13,151.51,151.46,9.13]
[1727283533585,12.45540783,151.51,151.49,3.3005]
[1727283536093,15.75570783,151.51,151.48,3.3008]
[1727283538090,15.75570783,151.51,151.45,9.13]
[1727283538997,15.75570783,151.51,151.48,3.3008]
[1727283539798,16.0,151.47,151.37,6.6064]
[1727283539987,9.13,151.43,151.38,9.13]
[1727283540192,9.13,151.43,151.37,2.6802]
[1727283540193,9.13,151.43,151.39,9.13]
[1727283540496,9.13,151.43,151.42,3.3022]
[1727283542393,9.13,151.43,151.41,3.3023]
[1727283542594,9.13,151.43,151.39,9.13]
[1727283543195,9.13,151.42,151.37,11.8102]
[1727283543496,9.13,151.41,151.37,2.6802]
[1727283544298,9.13,151.41,151.39,3.3026]
[1727283544898,9.13,151.41,151.37,11.8102]
[1727283545099,12.41047337,151.42,151.37,11.8102]
[1727283545294,3.28047337,151.42,151.4,3.3025]
[1727283545503,2.7337,151.5,151.41,9.13]
[1727283545696,9.13,151.46,151.41,9.13]
[1727283545891,9.13,151.46,151.43,3.3018]
[1727283546095,12.4314,151.46,151.41,9.13]
[1727283546399,9.13,151.45,151.39,9.13]
[1727283546593,3.3018,151.44,151.41,3.3023]
[1727283546789,3.3018,151.44,151.39,9.13]
[1727283547189,3.3018,151.44,151.41,3.3022]
[1727283547805,12.4316,151.45,151.42,3.3021]
[1727283548802,14.28,151.45,151.37,2.6802]
[1727283550198,14.28,151.47,151.41,3.3023]
[1727283550897,14.28,151.47,151.42,3.3021]
[1727283551502,14.28,151.47,151.38,14.28]
[1727283552301,17.5813,151.47,151.38,14.28]
[1727283552498,3.27650865,151.5,151.42,14.28]
[1727283552815,3.27650865,151.5,151.46,3.3012]
[1727283552816,3.3007,151.5,151.46,3.3012]
[1727283553101,6.58602734,151.5,151.46,3.3012]
[1727283553597,3.3007,151.49,151.46,3.3012]
[1727283553899,14.28,151.53,151.47,3.3011]
[1727283554204,3.3005,151.5,151.44,14.28]
[1727283554502,6.66213044,151.5,151.44,14.28]
[1727283554706,3.3003,151.51,151.44,14.28]
[1727283555502,3.3003,151.51,151.47,3.301]
[1727283556094,3.3005,151.5,151.47,3.301]
[1727283556298,3.34324616,151.49,151.47,3.301]
[1727283556605,14.28,151.53,151.47,3.301]
[1727283556904,3.3004,151.51,151.47,3.301]
[1727283557601,3.3006,151.5,151.46,3.3012]
[1727283557801,6.65838058,151.5,151.44,14.28]
[1727283557998,3.3006,151.5,151.44,14.28]
[1727283558302,3.3006,151.5,151.46,3.3012]
[1727283558499,3.313847,151.5,151.38,6.6058]
[1727283558703,14.28,151.53,151.42,14.28]
[1727283559004,0.98801888,151.52,151.44,14.28]
[1727283559193,3.3005,151.5,151.46,3.3012]
[1727283559394,3.28367576,151.5,151.43,2.5188]
[1727283559599,3.3008,151.49,151.43,2.5188]
[1727283559906,6.61849835,151.49,151.45,3.3014]
[1727283560104,3.3008,151.49,151.45,3.3014]
[1727283560699,3.36130012,151.49,151.44,14.28]
[1727283560898,1.2965,151.54,151.44,14.28]
[1727283561205,0.98799179,151.53,151.44,14.28]
[1727283561506,3.3001,151.52,151.46,14.28]
[1727283561895,3.2997,151.54,151.5,3.3003]
[1727283562094,3.36637558,151.58,151.5,14.28]
[1727283562298,18.2335,151.61,151.5,14.28]
[1727283562505,3.2989,151.58,151.53,3.2997]
[1727283562800,18.2335,151.61,151.5,14.28]
[1727283563001,3.2992,151.56,151.52,3.2999]
[1727283563203,3.28798784,151.55,151.52,3.2999]
[1727283563497,23.7735,151.61,151.49,2.7558]
[1727283563705,14.28,151.57,151.49,2.7558]
[1727283564103,3.2995,151.55,151.5,3.3003]
[1727283564698,3.2996,151.54,151.5,3.3003]
[1727283565508,6.57272949,151.54,151.5,3.3003]
[1727283567812,6.57272949,151.54,151.51,3.3002]
[1727283568009,3.27312949,151.54,151.51,3.3002]
[1727283568220,3.2995,151.55,151.51,3.3002]
[1727283568412,3.25904219,151.55,151.49,2.7558]
[1727283568712,14.28,151.59,151.49,2.7558]
[1727283568912,3.2992,151.56,151.53,3.2998]
[1727283569215,3.22152525,151.55,151.53,3.2998]
[1727283571321,3.299,151.57,151.53,3.2998]
[1727283572920,14.28,151.57,151.49,2.7558]
[1727283573718,3.2994,151.55,151.51,3.3002]
[1727283573918,6.62558025,151.55,151.51,3.3002]
[1727283575021,3.2996,151.54,151.51,3.3002]
[1727283577725,6.62568025,151.55,151.49,2.7558]
[1727283577927,3.2995,151.55,151.49,2.7558]
[1727283578412,6.66222398,151.55,151.49,2.7558]
[1727283578617,3.2995,151.55,151.52,3.2999]
[1727283579223,3.22548695,151.55,151.5,3.3003]
[1727283579422,14.28,151.57,151.5,3.3003]
[1727283579614,3.2999,151.53,151.5,3.3003]
[1727283579820,3.3753714,151.52,151.5,3.3003]
[1727283580018,6.5967,151.6,151.51,3.3002]
[1727283580221,0.98766839,151.59,151.53,14.28]
[1727283580429,110.94877239,151.65,151.55,14.28]
[1727283580729,3.298,151.62,151.55,14.28]
[1727283580915,6.5812618,151.62,151.58,3.2986]
[1727283581120,3.2832618,151.62,151.55,14.28]
[1727283581327,3.2983,151.6,151.55,14.28]
[1727283581524,3.25387916,151.59,151.55,14.28]
[1727283581825,110.94877239,151.65,151.55,14.28]
[1727283582020,0.98716061,151.63,151.55,14.28]
[1727283582527,3.2981,151.61,151.57,3.2988]
[1727283582727,3.2981,151.61,151.55,14.28]
[1727283583825,3.2981,151.61,151.58,3.2987]
[1727283584620,3.27040819,151.64,151.55,14.28]
[1727283584823,6.5913,151.73,151.59,14.28]
[1727283585029,2.28582347,151.72,151.61,14.28]
[1727283585328,15.26692347,151.71,151.64,3.2972]
[1727283585528,0.98692347,151.7,151.64,3.2972]
[1727283585926,3.2967,151.68,151.64,3.2972]
[1727283586229,0.98692347,151.67,151.63,3.2975]
[1727283586432,3.22159165,151.66,151.63,3.2975]
[1727283586632,14.28,151.7,151.63,3.2975]
[1727283586828,0.98679322,151.69,151.63,3.2975]
[1727283587032,0.98679322,151.69,151.62,3.2978]
[1727283587337,14.28,151.68,151.59,14.28]
[1727283587540,3.2974,151.65,151.59,14.28]
[1727283587830,3.37270687,151.64,151.59,14.28]
[1727283588031,14.28,151.68,151.59,14.28]
[1727283588626,0.98680492,151.67,151.59,14.28]
[1727283588833,3.297,151.66,151.61,3.298]
[1727283589033,6.6353925,151.66,151.61,3.298]
[1727283589334,3.297,151.66,151.61,3.298]
[1727283589732,0.98680461,151.65,151.61,3.298]
[1727283589933,0.98680461,151.65,151.62,3.2978]
[1727283590532,0.98680461,151.65,151.57,14.28]
[1727283590935,3.2975,151.64,151.6,3.2982]
[1727283593233,3.2979,151.62,151.57,14.28]
[1727283593432,14.28,151.64,151.56,3.938]
[1727283593627,0.9870569,151.63,151.56,3.938]
[1727283593934,14.28,151.62,151.57,3.2989]
[1727283594234,0.9870569,151.61,151.57,3.2989]
[1727283594531,3.2984,151.6,151.57,3.2989]
[1727283595933,14.28,151.62,151.56,5.9559]
[1727283595934,3.2985,151.59,151.56,5.9559]
[1727283596126,3.37029702,151.58,151.56,2.6569]
[1727283596324,14.28,151.62,151.56,2.6569]
[1727283596926,3.2984,151.6,151.57,3.2989]
[1727283600538,3.2981,151.61,151.58,3.2986]
[1727283601633,14.28,151.62,151.56,2.6569]
[1727283601839,3.2983,151.6,151.57,3.2988]
[1727283602639,14.28,151.62,151.56,2.6569]
[1727283603046,14.28,151.64,151.56,2.6569]
[1727283603249,3.3426818,151.66,151.65,3.2972]
[1727283603443,6.5888,151.78,151.62,14.28]
[1727283603444,19.81,151.8,151.62,28.56]
[1727283603640,0.98656248,151.79,151.63,1.2719]
[1727283603876,14.28,151.8,151.69,14.28]
[1727283604041,18.1926,151.86,151.63,1.2719]
[1727283604042,3.2936,151.82,151.63,1.2719]
[1727283604249,3.9126,151.86,151.72,3.2956]
[1727283604250,14.28,151.81,151.72,3.2956]
[1727283604552,3.2939,151.81,151.72,14.28]
[1727283604853,3.37377968,151.81,151.72,14.28]
[1727283605061,14.28,151.81,151.72,14.28]
[1727283605249,3.30619199,151.81,151.74,14.28]
[1727283605445,3.9126,151.86,151.77,3.2945]
[1727283605446,18.1926,151.86,151.77,3.2945]
[1727283605650,21.41307102,151.86,151.77,3.2945]
[1727283605845,0.98588596,151.85,151.76,14.28]
[1727283606041,21.41307102,151.86,151.76,14.28]
[1727283607150,21.41307102,151.86,151.77,3.2945]
[1727283607548,20.15037102,151.86,151.78,14.28]
[1727283608954,4.56557102,151.86,151.78,17.5743]
[1727283609547,79.2,151.91,151.8,14.28]
[1727283609745,96.83497264,151.91,151.8,14.28]
[1727283610152,3.2921,151.89,151.8,17.5739]
[1727283610453,82.55497264,151.91,151.82,14.28]
[1727283610954,3.2918,151.9,151.82,14.28]
[1727283611150,14.28,151.86,151.72,1.2591]
[1727283611349,14.28,151.86,151.75,14.28]
[1727283611759,3.2929,151.85,151.75,14.28]
[1727283611956,14.28,151.82,151.73,14.28]
[1727283612157,14.28,151.82,151.75,3.295]
[1727283612852,17.5735,151.82,151.75,3.295]
[1727283613357,14.28,151.82,151.75,3.295]
[1727283614157,3.2937,151.81,151.75,3.295]
[1727283615552,14.28,151.82,151.74,3.2952]
[1727283615553,3.294,151.8,151.74,3.2952]
[1727283615760,14.28,151.8,151.72,1.2591]
[1727283616156,14.28,151.78,151.72,1.2591]
[1727283616550,3.27466663,151.77,151.72,1.2591]
[1727283616750,17.59971781,151.86,151.69,3.2962]
[1727283616751,3.2952,151.75,151.69,3.2962]
[1727283617062,6.62524096,151.75,151.67,14.28]
[1727283617659,6.62524096,151.75,151.7,3.2961]
[1727283618458,3.2949,151.76,151.67,14.28]
[1727283618653,14.28,151.79,151.71,14.28]
[1727283618856,14.28,151.81,151.75,3.2949]
[1727283619562,14.28,151.81,151.76,3.2947]
[1727283620163,3.2939,151.8,151.75,3.2949]
[1727283620555,17.5739,151.81,151.73,14.28]
[1727283620755,17.5739,151.81,151.76,3.2948]
[1727283620955,14.28,151.81,151.73,14.28]
[1727283621163,3.2941,151.8,151.73,14.28]
[1727283621556,3.2941,151.8,151.75,3.2949]
[1727283622062,3.2942,151.79,151.75,3.2949]
[1727283622367,14.28,151.79,151.72,4.0007]
[1727283622562,22.8,151.75,151.63,22.8]
[1727283622867,22.8,151.75,151.67,3.2966]
[1727283623164,3.2959,151.71,151.64,3.9141]
[1727283623958,3.2959,151.71,151.67,3.2966]
[1727283626362,3.2958,151.72,151.67,3.2966]
[1727283627564,3.2959,151.71,151.67,3.2966]
[1727283627864,26.14223819,151.75,151.66,3.2969]
[1727283628267,3.2959,151.71,151.67,3.2967]
[1727283630071,3.2961,151.7,151.66,3.2969]
[1727283631358,26.14223819,151.75,151.65,3.2971]
[1727283631563,22.8,151.73,151.65,3.2971]
[1727283631866,22.8,151.73,151.64,1.2999]
[1727283632163,22.8,151.7,151.59,1.3784]
[1727283632364,26.09914254,151.7,151.59,1.3784]
[1727283632565,3.2969,151.67,151.63,3.2975]
[1727283632870,26.09914254,151.7,151.59,1.3784]
[1727283633270,3.2967,151.68,151.64,3.2973]
[1727283634167,3.2968,151.67,151.64,3.2973]
[1727283634370,1.3904,151.69,151.59,1.3784]
[1727283634770,3.2971,151.66,151.62,3.2977]
[1727283634969,1.3904,151.69,151.59,1.3784]
[1727283635172,22.8,151.68,151.58,2.6124]
[1727283635370,22.8,151.68,151.55,79.12]
[1727283635371,22.8,151.63,151.54,1.374]
[1727283635677,3.2979,151.62,151.54,24.174]
[1727283635876,3.31804987,151.61,151.54,24.174]
[1727283636070,22.8,151.64,151.54,1.374]
[1727283636266,3.2988,151.58,151.51,1.3265]
[1727283636471,6.57231893,151.58,151.54,3.2994]
[1727283636924,6.57231893,151.58,151.53,3.2997]
[1727283637066,22.8,151.57,151.45,22.8]
[1727283637375,24.0994,151.57,151.46,1.2805]
[1727283637571,4.62404189,151.57,151.48,22.8]
[1727283637765,3.32464189,151.57,151.48,22.8]
[1727283637965,22.8,151.59,151.48,22.8]
[1727283638377,26.14906594,151.59,151.48,22.8]
[1727283638766,26.14906594,151.59,151.46,1.2805]
[1727283638974,3.2996,151.54,151.46,1.2805]
[1727283639570,3.2999,151.53,151.5,3.3004]
[1727283639773,22.8,151.57,151.46,1.2805]
[1727283639967,26.17724511,151.57,151.46,1.2805]
[1727283640171,22.8,151.54,151.46,1.2805]
[1727283640374,22.8,151.49,151.37,79.14]
[1727283640681,3.3016,151.45,151.38,2.6454]
[1727283641074,22.8,151.47,151.38,2.6454]
[1727283641477,26.14687004,151.49,151.38,2.6454]
[1727283641681,22.8,151.49,151.38,2.6454]
[1727283641981,3.3015,151.46,151.41,3.3023]
[1727283642183,3.37394347,151.49,151.38,2.6454]
[1727283642383,22.8,151.51,151.39,22.8]
[1727283643181,22.8,151.51,151.38,2.6454]
[1727283643676,3.3012,151.47,151.43,3.302]
[1727283643872,6.55358995,151.47,151.43,3.302]
[1727283644272,3.3014,151.46,151.38,2.6454]
[1727283644982,3.28344691,151.45,151.38,2.6454]
[1727283645477,1.3272,151.48,151.4,3.3026]
[1727283645674,3.3017,151.45,151.4,3.3026]
[1727283646671,3.3017,151.45,151.41,3.3024]
[1727283647487,24.0999,151.47,151.38,1.3628]
[1727283648075,3.3014,151.46,151.38,1.3628]
[1727283649285,27.4011,151.47,151.38,1.3628]
[1727283649487,1.2999,151.47,151.38,1.3628]
[1727283649880,1.2999,151.47,151.42,3.3021]
[1727283650079,3.32078133,151.48,151.4,22.8]
[1727283650276,22.8,151.52,151.45,3.3013]
[1727283650483,3.3005,151.5,151.45,3.3013]
[1727283650786,22.8,151.52,151.45,3.3013]
[1727283650985,3.3006,151.5,151.45,3.3013]
[1727283651188,1.3905,151.53,151.42,22.8]
[1727283652085,3.3,151.52,151.42,22.8]
[1727283652289,1.3905,151.53,151.44,22.8]
[1727283652482,1.3905,151.53,151.49,3.3005]
[1727283652678,1.3905,151.53,151.44,22.8]
[1727283653189,1.3905,151.53,151.47,3.301]
[1727283653384,3.3001,151.52,151.42,22.8]
[1727283653585,1.3905,151.53,151.42,22.8]
[1727283653991,3.3002,151.52,151.42,22.8]
[1727283654187,1.3905,151.53,151.48,3.3008]
[1727283654781,3.3001,151.52,151.48,3.3008]
[1727283655982,4.6904,151.53,151.49,3.3006]
[1727283656887,3.3,151.52,151.48,3.3008]
[1727283657091,1.3905,151.53,151.42,22.8]
[1727283657389,3.3001,151.52,151.48,3.3008]
[1727283657588,1.3905,151.53,151.44,22.8]
[1727283657784,1.3905,151.53,151.45,1.2913]
[1727283657981,4.6903,151.53,151.49,3.3005]
[1727283658181,1.3905,151.53,151.45,1.2913]
[1727283658597,3.3003,151.51,151.47,3.301]
[1727283658992,22.8,151.52,151.4,24.1723]
[1727283659186,3.3008,151.49,151.45,3.3014]
[1727283659381,3.27233988,151.48,151.45,3.3014]
[1727283659892,3.3009,151.48,151.44,3.3017]
[1727283660089,3.30900383,151.49,151.44,3.3017]
[1727283660292,1.3155,151.51,151.4,24.1723]
[1727283660488,22.8,151.49,151.39,1.2913]
[1727283660794,26.12882218,151.49,151.39,1.2913]
[1727283661593,3.3012,151.47,151.43,3.3019]
[1727283662090,26.12882218,151.49,151.42,3.302]
[1727283662592,3.3015,151.46,151.42,3.302]
[1727283662993,26.12882218,151.49,151.39,1.2913]
[1727283663195,3.32882218,151.49,151.4,22.8]
[1727283663496,1.3155,151.51,151.4,22.8]
[1727283663497,1.3155,151.51,151.46,3.3012]
[1727283663692,1.3155,151.51,151.4,22.8]
[1727283664195,3.3006,151.5,151.46,3.3012]
[1727283664397,1.3155,151.51,151.4,22.8]
[1727283664692,1.3905,151.53,151.45,22.8]
[1727283664906,3.37724511,151.57,151.48,22.8]
[1727283665195,3.2991,151.57,151.52,3.2999]
[1727283665391,6.56107135,151.57,151.48,22.8]
[1727283665788,6.56107135,151.57,151.52,3.2999]
[1727283666186,6.89539019,151.69,151.47,1.2985]
[1727283666187,82.55914254,151.7,151.53,22.8]
[1727283666385,1.3515,151.65,151.53,22.8]
[1727283666687,4.59513895,151.65,151.55,22.8]
[1727283666896,1.3953,151.68,151.58,22.8]
[1727283667091,4.65445718,151.68,151.58,22.8]
[1727283667289,3.2978,151.63,151.53,22.8]
[1727283667489,3.2978,151.63,151.57,3.2987]
[1727283668090,3.2978,151.63,151.58,3.2987]
[1727283670093,3.2975,151.64,151.59,3.2985]
[1727283670293,4.65445718,151.68,151.56,22.8]
[1727283671086,22.8,151.67,151.55,2.6609]
[1727283671996,3.2978,151.63,151.58,3.2987]
[1727283673488,3.2974,151.65,151.6,3.2983]
[1727283673690,22.8,151.67,151.6,3.2983]
[1727283673898,4.65445718,151.68,151.56,22.8]
[1727283674295,4.65445718,151.68,151.58,22.8]
[1727283674296,3.25915718,151.68,151.58,22.8]
[1727283674491,1.2776,151.69,151.58,22.8]
[1727283674697,1.2776,151.69,151.61,3.298]
[1727283674698,3.2972,151.65,151.61,3.298]
[1727283674996,22.8,151.68,151.56,22.8]
[1727283675202,22.8,151.68,151.55,2.6609]
[1727283675597,22.8,151.68,151.56,22.8]
[1727283675792,3.2969,151.67,151.58,22.8]
[1727283675992,3.28108309,151.69,151.58,22.8]
[1727283676197,22.8,151.7,151.58,22.8]
[1727283676401,26.06568996,151.7,151.58,22.8]
[1727283676600,3.297,151.67,151.58,22.8]
[1727283676995,3.26568996,151.7,151.61,22.8]
[1727283677297,1.3515,151.72,151.63,22.8]
[1727283677507,1.3515,151.72,151.64,1.3925]
[1727283677796,3.2963,151.7,151.64,1.3925]
[1727283678000,1.3515,151.72,151.64,1.3925]
[1727283678407,3.2962,151.7,151.65,3.2971]
[1727283678999,3.2963,151.69,151.65,3.2971]
[1727283679202,4.71683419,151.72,151.65,3.2971]
[1727283681002,3.2962,151.7,151.65,3.2971]
[1727283681195,22.8,151.69,151.62,1.344]
[1727283681397,22.8,151.69,151.59,2.6654]
[1727283681802,0.98671483,151.68,151.62,3.2977]
[1727283682004,3.2969,151.67,151.62,3.2977]
[1727283682198,22.8,151.71,151.59,2.6654]
[1727283682395,0.98662118,151.7,151.61,22.8]
[1727283683094,0.98662118,151.7,151.66,3.2968]
[1727283683301,26.096,151.71,151.66,3.2968]
[1727283683807,8.01263419,151.72,151.61,22.8]
[1727283684100,0.98650551,151.71,151.63,22.8]
[1727283684301,0.98650551,151.71,151.68,3.2964]
[1727283684508,3.35609659,151.7,151.64,1.2615]
[1727283684703,22.8,151.74,151.64,1.2615]
[1727283685007,3.296,151.71,151.64,1.2615]
[1727283685200,3.33047813,151.7,151.64,1.2615]
[1727283685599,3.33047813,151.7,151.67,3.2966]
[1727283685800,22.8,151.69,151.59,2.6654]
[1727283686106,26.02756546,151.69,151.59,2.6654]
[1727283686307,3.22756546,151.69,151.59,25.4654]
[1727283686502,1.3146,151.7,151.59,25.4654]
[1727283686707,0.98662023,151.69,151.59,25.4654]
[1727283687407,22.8,151.67,151.59,2.6654]
[1727283687999,3.2975,151.64,151.6,3.2982]
[1727283688803,22.8,151.64,151.56,1.2989]
[1727283689301,3.2979,151.62,151.56,1.2989]
[1727283689700,22.8,151.64,151.56,1.2989]
[1727283689904,3.2977,151.63,151.56,1.2989]
[1727283690204,22.8,151.64,151.56,1.2989]
[1727283690405,22.8,151.66,151.56,24.0989]
[1727283690711,22.8,151.69,151.56,24.0989]
[1727283691204,22.8,151.69,151.58,22.8]
[1727283691399,3.2964,151.69,151.65,3.2971]
[1727283691708,1.3146,151.7,151.58,22.8]
[1727283692300,3.2964,151.69,151.65,3.2971]
[1727283693109,3.35269419,151.69,151.58,22.8]
[1727283693308,4.6107,151.7,151.58,22.8]
[1727283693510,7.94986595,151.7,151.58,22.8]
[1727283693701,4.65376595,151.7,151.58,22.8]
[1727283694099,3.33916595,151.7,151.61,22.8]
[1727283694305,22.8,151.71,151.62,2.613]
[1727283694507,22.8,151.71,151.65,3.2971]
[1727283694705,22.8,151.69,151.62,2.613]
[1727283694901,22.8,151.69,151.62,1.2692]
[1727283695111,22.8,151.69,151.62,3.2977]
[1727283695512,3.2973,151.65,151.57,2.613]
[1727283695718,22.8,151.67,151.57,2.613]
[1727283696113,22.8,151.64,151.57,2.613]
[1727283696517,22.8,151.67,151.57,2.613]
[1727283696707,22.8,151.67,151.61,3.298]
[1727283696708,3.2972,151.65,151.61,3.298]
[1727283696914,3.2972,151.65,151.57,2.613]
[1727283696915,22.8,151.67,151.57,2.613]
[1727283697119,22.8,151.64,151.57,2.613]
[1727283698021,3.2978,151.63,151.59,3.2983]
[1727283698914,3.34675755,151.62,151.59,3.2983]
[1727283699110,3.34675755,151.62,151.57,2.613]
[1727283699313,1.2938,151.66,151.57,2.613]
[1727283699520,26.0968,151.67,151.57,2.613]
[1727283699719,3.2968,151.67,151.57,2.613]
[1727283699917,4.0154,151.7,151.59,22.8]
[1727283700118,3.2967,151.68,151.64,3.2973]
[1727283700316,2.6284,151.7,151.64,3.2973]
[1727283701025,2.6284,151.7,151.57,2.613]
[1727283701425,22.8,151.67,151.57,2.613]
[1727283701626,3.2973,151.65,151.61,3.2979]
[1727283702423,3.2974,151.64,151.61,3.2979]
[1727283702623,22.8,151.67,151.61,3.2979]
[1727283703021,3.2973,151.65,151.57,2.613]
[1727283703315,22.8,151.67,151.57,2.613]
[1727283703719,22.8,151.69,151.57,2.613]
[1727283704525,3.2968,151.67,151.57,2.613]
[1727283704724,22.8,151.69,151.57,2.613]
[1727283704929,3.2967,151.68,151.64,3.2972]
[1727283705130,2.6284,151.7,151.64,3.2972]
[1727283705429,2.6284,151.7,151.57,2.613]
[1727283706030,3.2967,151.68,151.65,3.2971]
[1727283706433,3.2965,151.69,151.65,3.2971]
[1727283706629,2.6284,151.7,151.58,22.8]
[1727283707536,3.2968,151.67,151.64,3.2973]
[1727283708735,2.6284,151.7,151.59,6.5969]
[1727283708930,2.6284,151.7,151.59,29.3969]
[1727283709134,2.6284,151.7,151.57,2.613]
[1727283709431,22.8,151.67,151.57,2.613]
[1727283710331,3.2973,151.65,151.57,2.613]
[1727283711436,2.6284,151.7,151.57,2.613]
[1727283711637,0.98670782,151.69,151.57,2.613]
[1727283712136,23.78670782,151.69,151.57,2.613]
[1727283712337,3.2969,151.67,151.64,3.2973]
[1727283714542,3.2969,151.67,151.63,3.2975]
[1727283715129,3.297,151.66,151.63,3.2975]
[1727283716941,22.8,151.66,151.57,2.613]
[1727283717841,3.2975,151.64,151.57,2.613]
[1727283718042,22.8,151.64,151.57,2.613]
[1727283718435,26.0976,151.64,151.6,3.2981]
[1727283718733,22.8,151.64,151.6,3.2981]
[1727283720345,26.0975,151.64,151.61,3.298]
[1727283720536,26.0975,151.64,151.57,2.613]
[1727283721246,22.8,151.64,151.57,2.613]
[1727283721942,22.8,151.64,151.62,3.2978]
[1727283722143,26.0974,151.64,151.62,3.2978]
[1727283722937,22.8,151.69,151.57,2.613]
[1727283723139,2.6284,151.7,151.57,2.613]
[1727283723341,3.2969,151.67,151.57,2.613]
[1727283723643,2.6284,151.7,151.63,3.2975]
[1727283723861,3.2968,151.67,151.57,2.613]
[1727283724045,3.2968,151.67,151.64,3.2974]
[1727283724448,3.2968,151.67,151.57,2.613]
[1727283724749,3.2968,151.67,151.63,3.2975]
[1727283727034,3.2968,151.67,151.64,3.2973]
[1727283727238,2.6284,151.7,151.58,29.3975]
[1727283727842,3.2969,151.67,151.63,3.2975]
[1727283728043,2.6284,151.7,151.58,29.3975]
[1727283728242,3.2964,151.69,151.58,29.3975]
[1727283729350,2.6284,151.7,151.64,3.2972]
[1727283729648,0.98669245,151.69,151.58,29.3975]
[1727283729845,0.98669245,151.69,151.64,3.2974]
[1727283730241,0.98669245,151.69,151.57,2.613]
[1727283730550,3.2967,151.68,151.57,2.613]
[1727283731047,3.2968,151.67,151.64,3.2973]
[1727283732045,3.2966,151.68,151.64,3.2973]
[1727283732549,17.5466,151.68,151.64,3.2973]
[1727283732743,14.25,151.68,151.65,3.2971]
[1727283732948,14.25,151.68,151.59,14.25]
[1727283733247,17.5467,151.68,151.64,3.2973]
[1727283733647,17.5467,151.68,151.59,14.25]
[1727283733844,3.2968,151.67,151.59,14.25]
[1727283734347,2.6284,151.7,151.62,3.2977]
[1727283734348,14.25,151.66,151.62,3.2977]
[1727283734546,14.25,151.64,151.57,2.613]
[1727283734746,14.25,151.66,151.57,16.863]
[1727283735151,14.25,151.66,151.64,3000.0]
[1727283735855,14.25,151.66,151.64,3003.2974]
[1727283736152,14.25,151.66,151.64,3000.0]
[1727283736352,3.2972,151.65,151.64,3000.0]
[1727283736953,17.5472,151.65,151.64,3000.0]
[1727283737149,17.5472,151.65,151.64,2914.27]
[1727283737456,17.5472,151.65,151.64,2911.252]
[1727283737950,18.53419225,151.65,151.64,2873.22713621]
[1727283738255,34.06642766,151.65,151.64,2870.22713621]
[1727283738553,61.45398108,151.65,151.64,605.77713621]
[1727283738757,75.70460666,151.65,151.42,14.25]
[1727283739055,75.70460666,151.65,151.45,14.25]
[1727283739056,14.25,151.55,151.45,14.25]
[1727283739248,3.33179358,151.55,151.45,14.25]
[1727283739451,14.25,151.57,151.49,3.3005]
[1727283739654,3.30506796,151.54,151.49,3.3005]
[1727283740047,14.25,151.57,151.49,3.3005]
[1727283740248,17.56275282,151.57,151.48,3.3009]